bitfinex-derivatives/quotes_BTCF0:USTF0_20250119
["timestamp","ask_amount","ask_price","bid_price","bid_amount"]
[1737265246304,0.72444064,104820.0,104810.0,0.17157115]
[1737265246608,0.31338957,104820.0,104810.0,0.17157115]
[1737265246809,0.67418957,104820.0,104810.0,0.17157115]
[1737265248112,0.70278171,104820.0,104800.0,0.61532222]
[1737265248311,0.047755,104810.0,104800.0,0.61532222]
[1737265249018,0.047755,104810.0,104800.0,0.66308222]
[1737265249705,0.19049328,104810.0,104800.0,0.66308222]
[1737265251007,0.24074435,104810.0,104800.0,0.56507115]
[1737265251206,0.24074435,104810.0,104800.0,0.53237115]
[1737265251406,0.27194435,104810.0,104800.0,0.17157115]
[1737265252215,0.30047962,104810.0,104790.0,0.66178422]
[1737265252514,0.04776,104800.0,104790.0,0.66178422]
[1737265253816,0.19049209,104800.0,104790.0,0.66178422]
[1737265257420,0.19049209,104800.0,104790.0,0.89046932]
[1737265259416,0.19985412,104800.0,104790.0,0.89046932]
[1737265259815,0.19049209,104800.0,104790.0,0.89046932]
[1737265260121,0.19049209,104800.0,104790.0,0.94072039]
[1737265260310,0.19049209,104800.0,104790.0,0.89046932]
[1737265261515,0.19049209,104800.0,104790.0,0.94072039]
[1737265261722,0.04776,104800.0,104790.0,1.05440077]
[1737265262917,0.04776,104800.0,104790.0,1.42815282]
[1737265263221,0.04776,104800.0,104790.0,1.37790175]
[1737265264221,0.04776,104800.0,104790.0,0.71889817]
[1737265265316,0.04776,104800.0,104790.0,0.76914924]
[1737265265825,0.19996794,104810.0,104800.0,0.04776]
[1737265266125,0.19996794,104810.0,104800.0,0.49121107]
[1737265267011,0.19996794,104810.0,104800.0,0.89161483]
[1737265268220,0.19996794,104810.0,104800.0,0.92201483]
[1737265268424,0.19996794,104810.0,104800.0,0.69332973]
[1737265269126,0.19048909,104810.0,104800.0,0.69332973]
[1737265269628,0.19048909,104810.0,104800.0,0.92201483]
[1737265273525,0.19048909,104810.0,104800.0,0.75029617]
[1737265276320,0.19048909,104810.0,104800.0,0.38949617]
[1737265276523,0.19048909,104810.0,104800.0,0.75029617]
[1737265277324,0.24074016,104810.0,104800.0,0.2764451]
[1737265277531,0.33444016,104810.0,104800.0,0.2764451]
[1737265278431,0.28418909,104810.0,104800.0,0.2764451]
[1737265278730,0.33444016,104810.0,104800.0,0.4482465]
[1737265279131,0.33444016,104810.0,104800.0,0.4004865]
[1737265280327,0.50571371,104810.0,104800.0,0.1718014]
[1737265281733,0.36298162,104810.0,104800.0,0.1718014]
[1737265284529,0.36298162,104810.0,104800.0,0.5326014]
[1737265284733,0.36298162,104810.0,104800.0,0.1718014]
[1737265288537,0.047759,104800.0,104790.0,0.85930157]
[1737265289534,0.19055365,104800.0,104790.0,0.85930157]
[1737265291231,0.19055365,104800.0,104790.0,0.63061647]
[1737265293135,0.19999325,104800.0,104790.0,0.63061647]
[1737265294035,0.19999325,104800.0,104790.0,0.85930157]
[1737265295342,0.19999325,104800.0,104790.0,0.63061647]
[1737265297638,0.19999325,104800.0,104790.0,0.5803654]
[1737265298040,0.19999325,104800.0,104790.0,0.8090505]
[1737265298846,0.25024432,104800.0,104790.0,0.7612865]
[1737265300847,0.42151787,104800.0,104790.0,0.5326014]
[1737265302149,0.25024432,104800.0,104790.0,0.5326014]
[1737265304647,0.19999325,104800.0,104790.0,0.63061647]
[1737265304847,0.3712668,104800.0,104790.0,0.66201647]
[1737265306351,0.22847215,104800.0,104790.0,0.66201647]
[1737265306838,0.27872322,104800.0,104790.0,0.6117654]
[1737265307750,0.32517289,104800.0,104790.0,0.6117654]
[1737265307947,0.27492182,104800.0,104790.0,0.6117654]
[1737265308151,0.27492182,104800.0,104790.0,0.69341647]
[1737265308345,0.32517289,104800.0,104790.0,0.6431654]
[1737265309450,0.27872322,104800.0,104790.0,0.6431654]
[1737265309646,0.22847215,104800.0,104790.0,0.6431654]
[1737265310449,0.22847215,104800.0,104790.0,0.69341647]
[1737265310842,0.22847215,104800.0,104790.0,0.6431654]
[1737265311440,0.27872322,104800.0,104790.0,0.6431654]
[1737265311842,0.22847215,104800.0,104790.0,0.6431654]
[1737265312046,0.37143746,104800.0,104790.0,0.8718505]
[1737265313251,0.20016391,104800.0,104790.0,0.7000491]
[1737265313549,0.20016391,104800.0,104790.0,0.75030017]
[1737265315953,0.37143746,104800.0,104790.0,0.92217249]
[1737265317847,0.31423886,104800.0,104790.0,0.97242356]
[1737265318051,0.14296531,104800.0,104790.0,0.80055124]
[1737265319557,0.20007633,104810.0,104790.0,1.57194976]
[1737265319754,0.20007633,104810.0,104800.0,0.48981107]
[1737265320859,0.20007633,104810.0,104800.0,0.89058058]
[1737265322158,0.20007633,104810.0,104800.0,0.66156943]
[1737265328362,0.05711102,104810.0,104800.0,0.89058058]
[1737265330961,0.10736209,104810.0,104800.0,0.84032951]
[1737265331164,0.05711102,104810.0,104800.0,0.84032951]
[1737265331363,0.05711102,104810.0,104800.0,0.89058058]
[1737265332266,0.20007633,104810.0,104800.0,0.66156943]
[1737265333264,0.2503274,104810.0,104800.0,0.61131836]
[1737265333458,0.20007633,104810.0,104800.0,0.61131836]
[1737265333659,0.23067633,104810.0,104800.0,0.66156943]
[1737265334062,0.14296531,104810.0,104800.0,0.66156943]
[1737265335265,0.19071831,104820.0,104810.0,0.047755]
[1737265335456,0.19071831,104820.0,104810.0,0.45880607]
[1737265336757,0.19071831,104820.0,104810.0,0.63056443]
[1737265337764,0.14296531,104820.0,104810.0,0.63056443]
[1737265338265,0.14296531,104820.0,104810.0,0.69286443]
[1737265338659,0.17127355,104830.0,104820.0,0.04775]
[1737265338660,0.31423886,104830.0,104820.0,0.04775]
[1737265338860,0.31423886,104830.0,104820.0,0.49150107]
[1737265339058,0.31423886,104830.0,104820.0,0.54175214]
[1737265340171,0.14296531,104840.0,104830.0,0.047746]
[1737265340465,0.14296531,104840.0,104830.0,0.45879707]
[1737265341069,0.51656698,104850.0,104830.0,0.6302491]
[1737265342258,0.14296531,104840.0,104830.0,0.45879707]
[1737265346160,0.19070631,104840.0,104830.0,0.408546]
[1737265346357,0.24095738,104840.0,104830.0,0.408546]
[1737265347364,0.19070631,104840.0,104830.0,0.45879707]
[1737265351065,0.047741,104840.0,104830.0,0.45879707]
[1737265351766,0.047741,104840.0,104830.0,0.48959707]
[1737265351968,0.047741,104840.0,104830.0,0.52259707]
[1737265358268,0.19070631,104840.0,104830.0,0.52259707]
[1737265360974,0.36197986,104840.0,104830.0,0.52259707]
[1737265361268,0.31423886,104840.0,104830.0,0.52259707]
[1737265362675,0.14296531,104850.0,104840.0,0.047741]
[1737265362871,0.14296531,104850.0,104840.0,0.48979207]
[1737265364583,0.14296531,104850.0,104840.0,0.54004314]
[1737265365380,0.14296531,104850.0,104840.0,0.71149517]
[1737265365583,0.17127355,104860.0,104850.0,0.047737]
[1737265365883,0.17127355,104860.0,104850.0,0.52098807]
[1737265366783,0.047732,104860.0,104850.0,0.92145125]
[1737265367284,0.047732,104860.0,104850.0,0.88955125]
[1737265369479,0.047732,104860.0,104850.0,0.6605401]
[1737265369790,0.047732,104860.0,104850.0,0.71079117]
[1737265370383,0.047732,104860.0,104850.0,0.6605401]
[1737265370988,0.047732,104860.0,104850.0,0.71079117]
[1737265371385,0.047732,104860.0,104850.0,0.6605401]
[1737265372386,0.047732,104860.0,104850.0,0.71079117]
[1737265373489,0.047732,104860.0,104850.0,0.6605401]
[1737265375385,0.047732,104860.0,104850.0,0.71079117]
[1737265378592,0.047732,104860.0,104850.0,0.6605401]
[1737265378795,0.047732,104860.0,104850.0,0.71079117]
[1737265380288,0.15265169,104870.0,104860.0,0.047732]
[1737265380583,0.15265169,104870.0,104860.0,0.45878307]
[1737265381498,0.32392524,104870.0,104860.0,0.45878307]
[1737265386999,0.24309624,104870.0,104860.0,0.45878307]
[1737265387301,0.29082424,104870.0,104860.0,0.45878307]
[1737265388301,0.11955069,104870.0,104860.0,0.45878307]
[1737265389703,0.11955069,104870.0,104860.0,0.6302351]
[1737265390997,0.29082424,104870.0,104860.0,0.6302351]
[1737265396097,0.11955069,104870.0,104860.0,0.6302351]
[1737265397401,0.11955069,104870.0,104860.0,0.85924625]
[1737265397603,0.05745069,104870.0,104860.0,0.85924625]
[1737265398405,0.22906573,104870.0,104860.0,0.85924625]
[1737265398704,0.22906573,104870.0,104860.0,0.80899518]
[1737265398906,0.25956573,104870.0,104860.0,0.80899518]
[1737265399506,0.32186573,104870.0,104860.0,0.80899518]
[1737265401303,0.32186573,104870.0,104860.0,0.44819518]
[1737265401615,0.32186573,104870.0,104860.0,0.45071425]
[1737265403610,0.32186573,104870.0,104860.0,0.49844625]
[1737265403910,0.32186573,104870.0,104860.0,0.32699422]
[1737265405016,0.32186573,104870.0,104860.0,0.61224575]
[1737265406016,0.32186573,104870.0,104860.0,1.02051536]
[1737265406612,0.32186573,104870.0,104860.0,1.38131536]
[1737265407909,0.32186573,104870.0,104860.0,1.02051536]
[1737265408116,0.22906573,104870.0,104860.0,1.38131536]
[1737265408313,0.18133773,104870.0,104860.0,1.41361536]
[1737265408514,0.18133773,104870.0,104860.0,1.44411536]
[1737265408712,0.00972269,104870.0,104860.0,1.44411536]
[1737265408913,0.21934004,104880.0,104860.0,1.39638336]
[1737265409108,0.21934004,104880.0,104870.0,0.45877907]
[1737265409509,0.047725,104880.0,104870.0,0.49107907]
[1737265410220,0.047725,104880.0,104870.0,0.89192972]
[1737265410711,0.05731219,104880.0,104870.0,0.89192972]
[1737265411215,0.05731219,104880.0,104870.0,1.41423027]
[1737265412311,0.00958719,104880.0,104870.0,1.41423027]
[1737265412511,0.30315728,104890.0,104870.0,1.41423027]
[1737265412710,0.30315728,104890.0,104880.0,0.05025107]
[1737265413316,0.30315728,104890.0,104880.0,0.45877407]
[1737265413511,0.30315728,104890.0,104880.0,0.85946486]
[1737265414415,0.31277475,104890.0,104880.0,0.85946486]
[1737265414911,0.14133747,104890.0,104880.0,0.85946486]
[1737265416018,0.11003747,104890.0,104880.0,0.89276486]
[1737265416217,0.07733747,104890.0,104880.0,0.89276486]
[1737265416920,0.02961747,104890.0,104880.0,0.89276486]
[1737265417913,0.20105475,104890.0,104880.0,0.49207407]
[1737265418315,0.20105475,104890.0,104880.0,0.54232514]
[1737265418721,0.20105475,104890.0,104880.0,0.49207407]
[1737265420217,0.20105475,104890.0,104880.0,0.54232514]
[1737265420418,0.02961747,104890.0,104880.0,0.54232514]
[1737265421722,0.02961747,104890.0,104880.0,0.49207407]
[1737265422716,0.02961747,104890.0,104880.0,0.54232514]
[1737265425554,0.02961747,104890.0,104880.0,0.71400478]
[1737265425725,0.02961747,104890.0,104880.0,0.74550478]
[1737265426418,0.12758754,104890.0,104880.0,0.17167964]
[1737265426614,0.52078754,104890.0,104880.0,0.17167964]
[1737265426827,0.58518754,104890.0,104880.0,0.17167964]
[1737265427623,0.22438754,104890.0,104880.0,0.17167964]
[1737265427824,0.58518754,104890.0,104880.0,0.17167964]
[1737265428023,0.58518754,104890.0,104870.0,0.61224075]
[1737265428024,0.75662482,104890.0,104860.0,0.95717286]
[1737265428335,0.047727,104880.0,104870.0,0.05025107]
[1737265428830,0.09797807,104880.0,104860.0,0.95716986]
[1737265429232,0.09797807,104880.0,104860.0,0.72815871]
[1737265429536,0.047727,104880.0,104860.0,0.77588871]
[1737265429733,0.09797807,104880.0,104860.0,0.77588871]
[1737265430228,0.09797807,104880.0,104860.0,0.72815871]
[1737265430424,0.45877807,104880.0,104860.0,0.72815871]
[1737265430732,0.047728,104870.0,104860.0,0.72815871]
[1737265434135,0.047728,104870.0,104860.0,0.55647907]
[1737265437139,0.047728,104870.0,104860.0,0.47725107]
[1737265437437,0.09797907,104870.0,104860.0,0.427]
[1737265438832,0.09797907,104870.0,104860.0,0.394]
[1737265439525,0.10769208,104870.0,104860.0,0.394]
[1737265440837,0.10769208,104870.0,104860.0,0.44425107]
[1737265441532,0.10769208,104870.0,104860.0,0.41105107]
[1737265441841,0.10769208,104870.0,104850.0,0.85947686]
[1737265441842,0.047732,104860.0,104850.0,0.85947686]
[1737265445535,0.09798307,104860.0,104850.0,0.76149079]
[1737265445734,0.45878307,104860.0,104850.0,0.40069079]
[1737265445940,0.047737,104850.0,104840.0,0.28525153]
[1737265446139,0.24323914,104850.0,104840.0,0.28525153]
[1737265446344,0.047741,104840.0,104830.0,0.3608]
[1737265446641,0.09799207,104840.0,104830.0,0.3608]
[1737265450346,0.10737182,104840.0,104830.0,0.3608]
[1737265452440,0.047746,104830.0,104820.0,0.78224041]
[1737265463737,0.047746,104830.0,104820.0,0.55473168]
[1737265469749,0.047746,104830.0,104820.0,0.60498275]
[1737265469948,0.047746,104830.0,104820.0,0.55473168]
[1737265470349,0.047746,104830.0,104820.0,0.60498275]
[1737265470657,0.18985863,104840.0,104830.0,0.047743]
[1737265470857,0.18985863,104840.0,104830.0,0.45879407]
[1737265471957,0.047742,104840.0,104830.0,0.45879407]
[1737265475559,0.18985863,104840.0,104830.0,0.45879407]
[1737265476559,0.18985863,104840.0,104830.0,1.13562757]
[1737265481658,0.047742,104840.0,104830.0,1.13562757]
[1737265482567,0.40357701,104850.0,104840.0,0.047741]
[1737265482761,0.37107701,104850.0,104840.0,0.45879207]
[1737265483061,0.36129391,104850.0,104840.0,0.49019207]
[1737265483262,0.36129391,104850.0,104840.0,0.55479207]
[1737265483672,0.31355391,104850.0,104840.0,0.55479207]
[1737265484254,0.047737,104850.0,104840.0,1.23162557]
[1737265485364,0.047737,104850.0,104840.0,0.55479207]
[1737265488473,0.32335153,104860.0,104840.0,0.55479207]
[1737265488766,0.37108553,104860.0,104850.0,0.45878807]
[1737265489361,0.19964825,104860.0,104850.0,0.45878807]
[1737265492872,0.18985063,104860.0,104850.0,0.50903914]
[1737265493367,0.28454663,104870.0,104860.0,0.047732]
[1737265493572,0.28454663,104870.0,104860.0,0.09798307]
[1737265496577,0.29421192,104870.0,104860.0,0.09798307]
[1737265499769,0.29421192,104870.0,104860.0,0.45878307]
[1737265500467,0.15178192,104870.0,104860.0,0.45878307]
[1737265500663,0.14211663,104870.0,104860.0,0.45878307]
[1737265500868,0.14211663,104870.0,104860.0,0.55348307]
[1737265501465,0.31355391,104880.0,104870.0,0.047728]
[1737265501667,0.31355391,104880.0,104870.0,0.45877907]
[1737265503178,0.047722,104890.0,104880.0,0.047723]
[1737265503380,0.047722,104890.0,104880.0,0.45877407]
[1737265506185,0.25174619,104900.0,104890.0,0.047719]
[1737265506378,0.25174619,104900.0,104890.0,0.45877007]
[1737265506574,0.29946019,104900.0,104890.0,0.45877007]
[1737265507773,0.15734356,104900.0,104890.0,0.45877007]
[1737265520178,0.10962956,104900.0,104890.0,0.45877007]
[1737265520984,0.1,104900.0,104890.0,0.45877007]
[1737265524789,0.1,104900.0,104890.0,0.46833444]
[1737265529387,0.24211663,104900.0,104890.0,0.46833444]
[1737265530493,0.24211663,104900.0,104890.0,0.69631517]
[1737265531689,0.18982763,104910.0,104900.0,0.047714]
[1737265531990,0.18982763,104910.0,104900.0,0.48976507]
[1737265532782,0.18982763,104910.0,104900.0,0.7179403]
[1737265535500,0.18982763,104910.0,104900.0,0.7503403]
[1737265535702,0.14211663,104910.0,104900.0,0.80059137]
[1737265536005,0.14211663,104910.0,104900.0,0.60461614]
[1737265537397,0.32307807,104920.0,104910.0,0.047709]
[1737265537398,0.4651947,104920.0,104910.0,0.047709]
[1737265537704,0.4651947,104920.0,104910.0,0.50901114]
[1737265539215,0.32307807,104920.0,104910.0,0.50901114]
[1737265541207,0.21914328,104920.0,104910.0,0.50901114]
[1737265541602,0.17143728,104920.0,104910.0,0.50901114]
[1737265543317,0.14268457,104920.0,104910.0,0.50901114]
[1737265544818,0.21913828,104930.0,104910.0,0.50901114]
[1737265544819,0.36182285,104930.0,104910.0,0.50901114]
[1737265545013,0.36182285,104930.0,104920.0,0.49105607]
[1737265546519,0.19038557,104930.0,104920.0,0.49105607]
[1737265548017,0.14268457,104930.0,104920.0,0.49105607]
[1737265548316,0.2287176,104940.0,104930.0,0.0477]
[1737265548514,0.21913428,104940.0,104930.0,0.4085]
[1737265548717,0.047697,104940.0,104930.0,0.45875107]
[1737265549720,0.047697,104940.0,104930.0,0.50900214]
[1737265550116,0.17143728,104950.0,104930.0,0.50900214]
[1737265550425,0.21913028,104950.0,104940.0,0.50899814]
[1737265550722,0.19848502,104960.0,104950.0,0.047691]
[1737265550923,0.19848502,104960.0,104950.0,0.53929314]
[1737265551114,0.19848502,104960.0,104950.0,0.57059314]
[1737265551314,0.19848502,104960.0,104950.0,0.6057838]
[1737265551524,0.52971406,104980.0,104970.0,0.047682]
[1737265551725,0.52971406,104980.0,104970.0,0.1155284]
[1737265552213,0.52971406,104980.0,104970.0,0.4763284]
[1737265553222,0.48203506,104980.0,104970.0,0.4763284]
[1737265553413,0.17983279,104990.0,104980.0,0.047678]
[1737265553612,0.17983279,104990.0,104980.0,0.4763244]
[1737265554324,0.047678,104980.0,104970.0,0.408482]
[1737265554522,0.60847919,104990.0,104960.0,0.4763324]
[1737265554724,0.047682,104970.0,104960.0,0.4763324]
[1737265555424,0.047682,104970.0,104960.0,0.408486]
[1737265555620,0.4763284,104970.0,104950.0,0.87422676]
[1737265555927,0.4237,104960.0,104940.0,0.70594589]
[1737265556126,0.047691,104950.0,104940.0,0.70594589]
[1737265557416,0.047691,104950.0,104940.0,0.47777066]
[1737265559522,0.110588,104960.0,104950.0,0.047691]
[1737265560026,0.471388,104960.0,104940.0,0.36222926]
[1737265560230,0.471388,104960.0,104940.0,0.40992426]
[1737265560231,0.047691,104950.0,104940.0,0.40992426]
[1737265560726,0.047691,104950.0,104940.0,0.47777066]
[1737265561027,0.047691,104950.0,104940.0,0.43007566]
[1737265561328,0.078991,104950.0,104940.0,0.36222926]
[1737265562329,0.047696,104940.0,104930.0,0.01450771]
[1737265564925,0.1155424,104940.0,104930.0,0.01450771]
[1737265565132,0.0678464,104940.0,104920.0,0.408504]
[1737265565426,0.1769464,104930.0,104920.0,0.3608]
[1737265565622,0.047705,104920.0,104910.0,0.3608]
[1737265565831,0.4286464,104920.0,104900.0,0.63668823]
[1737265566020,0.047709,104910.0,104900.0,0.63668823]
[1737265567220,0.047709,104910.0,104900.0,0.70453463]
[1737265567422,0.047709,104910.0,104900.0,0.408513]
[1737265574935,0.047714,104900.0,104890.0,0.36222977]
[1737265575136,0.1155604,104900.0,104890.0,0.36222977]
[1737265575437,0.5394604,104900.0,104890.0,0.00142977]
[1737265576237,0.5394604,104900.0,104880.0,0.39277073]
[1737265576238,0.047719,104890.0,104880.0,0.39277073]
[1737265576441,0.047719,104890.0,104880.0,0.03197073]
[1737265577342,0.1155654,104890.0,104880.0,7.073e-05]
[1737265577927,0.4763654,104890.0,104880.0,7.073e-05]
[1737265578343,0.4763654,104890.0,104860.0,0.0305]
[1737265578344,0.047728,104870.0,104860.0,0.0305]
[1737265578639,0.047732,104860.0,104850.0,0.8393026]
[1737265579741,0.047732,104860.0,104850.0,0.440335]
[1737265580238,0.047732,104860.0,104850.0,0.5081814]
[1737265580840,0.047732,104860.0,104850.0,0.4763814]
[1737265581633,0.047737,104850.0,104840.0,0.502039]
[1737265581935,0.047737,104850.0,104840.0,0.5698854]
[1737265582335,0.047737,104850.0,104840.0,0.74067777]
[1737265583741,0.047737,104850.0,104840.0,0.5698854]
[1737265584745,0.047737,104850.0,104840.0,0.502039]
[1737265584936,0.047737,104850.0,104840.0,0.5698854]
[1737265588849,0.05548561,104860.0,104850.0,0.1155834]
[1737265589043,0.05548561,104860.0,104850.0,0.4763834]
[1737265589744,0.047728,104870.0,104860.0,0.04773]
[1737265589951,0.047728,104870.0,104860.0,0.4763764]
[1737265590254,0.047725,104880.0,104870.0,0.047727]
[1737265590547,0.047725,104880.0,104870.0,0.2084734]
[1737265591551,0.047725,104880.0,104870.0,0.140627]
[1737265592045,0.047725,104880.0,104870.0,0.0608]
[1737265597659,0.047728,104870.0,104860.0,0.4763754]
[1737265597846,0.047728,104870.0,104860.0,0.5413754]
[1737265598556,0.047728,104870.0,104860.0,0.71216777]
[1737265600251,0.047728,104870.0,104860.0,0.35136777]
[1737265600856,0.047728,104870.0,104860.0,0.28352137]
[1737265601856,0.05550415,104870.0,104860.0,0.28352137]
[1737265602553,0.05550415,104870.0,104860.0,0.23579237]
[1737265602759,0.41630415,104870.0,104860.0,0.17079237]
[1737265603159,0.41630415,104870.0,104860.0,0.3989676]
[1737265603661,0.48415055,104870.0,104860.0,0.3989676]
[1737265603857,0.047732,104860.0,104850.0,0.28525153]
[1737265604161,0.5384784,104860.0,104850.0,0.28525153]
[1737265604662,0.047737,104850.0,104840.0,0.98835337]
[1737265605953,0.047737,104850.0,104840.0,1.02627871]
[1737265607560,0.047737,104850.0,104840.0,0.66547871]
[1737265608961,0.1155834,104850.0,104840.0,0.66547871]
[1737265609266,0.4763834,104850.0,104840.0,0.66547871]
[1737265609968,0.047741,104840.0,104830.0,0.28525153]
[1737265610461,0.1155874,104840.0,104830.0,0.28525153]
[1737265610770,0.047741,104840.0,104830.0,0.28525153]
[1737265611666,0.047746,104830.0,104820.0,0.79617824]
[1737265612563,0.047746,104830.0,104820.0,1.17846562]
[1737265613870,0.047746,104830.0,104820.0,0.51092671]
[1737265614664,0.047746,104830.0,104820.0,0.44308031]
[1737265615266,0.047746,104830.0,104820.0,0.51092671]
[1737265617169,0.047746,104830.0,104820.0,0.15012671]
[1737265617363,0.047746,104830.0,104820.0,0.51092671]
[1737265618472,0.047746,104830.0,104820.0,0.44308031]
[1737265619357,0.047746,104830.0,104820.0,0.51092671]
[1737265623167,0.51311938,104850.0,104830.0,0.047744]
[1737265623168,0.047743,104840.0,104830.0,0.047744]
[1737265624180,0.047743,104840.0,104830.0,0.080944]
[1737265624382,0.047743,104840.0,104830.0,0.114244]
[1737265625770,0.047743,104840.0,104830.0,0.1820904]
[1737265626574,0.047743,104840.0,104830.0,0.5428904]
[1737265627172,0.047743,104840.0,104830.0,0.475044]
[1737265627371,0.047743,104840.0,104830.0,0.0665]
[1737265627572,0.047743,104840.0,104830.0,0.0332]
[1737265627978,0.408543,104840.0,104830.0,0.0332]
[1737265629880,0.55024465,104840.0,104830.0,0.0332]
[1737265630781,0.61809105,104840.0,104820.0,0.47357831]
[1737265631082,0.047746,104830.0,104820.0,0.47357831]
[1737265632478,0.047746,104830.0,104820.0,0.44307831]
[1737265633483,0.18944765,104830.0,104820.0,0.44307831]
[1737265634582,0.61809405,104830.0,104820.0,0.00143031]
[1737265635889,0.78857712,104830.0,104820.0,0.00143031]
[1737265636080,0.79484394,104830.0,104820.0,0.00143031]
[1737265637487,0.72699754,104830.0,104820.0,0.00143031]
[1737265637685,0.36619754,104830.0,104820.0,0.47782671]
[1737265637880,0.36619754,104830.0,104820.0,0.40998031]
[1737265638390,0.22449589,104830.0,104820.0,0.40998031]
[1737265639289,0.22449589,104830.0,104820.0,0.00143031]
[1737265639686,0.05401282,104830.0,104820.0,0.00143031]
[1737265640191,0.48265922,104830.0,104820.0,0.00143031]
[1737265641093,0.79617037,104830.0,104820.0,0.00143031]
[1737265641887,0.82897037,104830.0,104820.0,0.00143031]
[1737265642395,0.68594229,104830.0,104800.0,0.79390537]
[1737265642599,0.047755,104810.0,104800.0,0.79390537]
[1737265642798,0.047755,104810.0,104800.0,0.38534737]
[1737265643293,0.047755,104810.0,104800.0,0.74614737]
[1737265643486,0.047755,104810.0,104800.0,0.46089584]
[1737265645594,0.05382675,104810.0,104800.0,0.46089584]
[1737265645795,0.05382675,104810.0,104800.0,0.10009584]
[1737265646495,0.05382675,104810.0,104800.0,0.1]
[1737265647395,0.48247315,104810.0,104790.0,0.3918]
[1737265647700,0.08006,104800.0,104790.0,0.3918]
[1737265652394,0.1479064,104800.0,104790.0,0.3918]
[1737265652589,0.1786064,104800.0,104790.0,0.3608]
[1737265652794,0.047764,104790.0,104780.0,0.080167]
[1737265653196,0.047764,104790.0,104780.0,0.0324]
[1737265654199,0.047764,104790.0,104780.0,0.04733432]
[1737265654505,0.1156104,104790.0,104780.0,0.01493432]
[1737265654700,0.1156104,104790.0,104770.0,0.472171]
[1737265654901,0.047769,104780.0,104770.0,0.472171]
[1737265655101,0.047769,104780.0,104770.0,0.4244]
[1737265655601,0.1156154,104780.0,104770.0,0.4244]
[1737265656903,0.1156154,104780.0,104770.0,0.3921]
[1737265657898,0.047773,104770.0,104760.0,0.39373123]
[1737265658205,0.1156194,104770.0,104760.0,0.03293123]
[1737265658504,0.1156194,104770.0,104760.0,0.00143123]
[1737265659300,0.047778,104760.0,104750.0,0.3608]
[1737265659501,0.047778,104760.0,104750.0,0.3928]
[1737265659707,0.047778,104760.0,104750.0,0.4906464]
[1737265660312,0.54668046,104780.0,104750.0,0.4906464]
[1737265660313,0.047774,104770.0,104760.0,0.047778]
[1737265660512,0.047774,104770.0,104760.0,0.5084244]
[1737265665815,0.047774,104770.0,104760.0,0.440578]
[1737265666004,0.047774,104770.0,104760.0,0.3928]
[1737265666211,0.047774,104770.0,104760.0,0.4606464]
[1737265667210,0.047774,104770.0,104760.0,0.3928]
[1737265671014,0.047774,104770.0,104760.0,0.3608]
[1737265671610,0.047778,104760.0,104750.0,0.6835689]
[1737265673317,0.047778,104760.0,104750.0,0.4556]
[1737265675904,0.047778,104760.0,104750.0,0.0948]
[1737265677635,0.047775,104770.0,104760.0,0.047777]
[1737265677931,0.047775,104770.0,104760.0,0.4764234]
[1737265678133,0.047775,104770.0,104760.0,0.49136161]
[1737265679732,0.047775,104770.0,104760.0,0.71933051]
[1737265680837,0.05453506,104780.0,104770.0,0.047773]
[1737265681138,0.05453506,104780.0,104770.0,0.5370194]
[1737265681325,0.05453506,104780.0,104770.0,0.5675194]
[1737265682229,0.05453506,104780.0,104770.0,0.7954883]
[1737265682431,0.05453506,104780.0,104770.0,0.3668419]
[1737265683527,0.05453506,104780.0,104770.0,0.3190689]
[1737265685031,0.19749826,104780.0,104770.0,0.3190689]
[1737265686539,0.19749826,104780.0,104770.0,0.0911]
[1737265687833,0.047773,104770.0,104760.0,0.87402043]
[1737265688034,0.047773,104770.0,104760.0,0.888957]
[1737265688939,0.1907362,104770.0,104760.0,0.37573657]
[1737265690733,0.2585826,104770.0,104760.0,0.37573657]
[1737265690943,0.2585826,104770.0,104760.0,0.01493657]
[1737265691244,0.6193826,104770.0,104760.0,0.01493657]
[1737265691542,0.047777,104760.0,104750.0,0.57596804]
[1737265691744,0.047777,104760.0,104750.0,0.29071651]
[1737265691745,0.408577,104760.0,104750.0,0.29071651]
[1737265692245,0.408577,104760.0,104750.0,0.30565536]
[1737265693045,0.72202327,104760.0,104750.0,0.07768646]
[1737265694547,0.36122327,104760.0,104750.0,0.58731286]
[1737265694744,0.36122327,104760.0,104750.0,0.51946646]
[1737265695349,0.047777,104760.0,104750.0,0.74743536]
[1737265696145,0.047777,104760.0,104750.0,0.69965536]
[1737265697833,0.05524406,104760.0,104750.0,0.69965536]
[1737265698049,0.05524406,104760.0,104750.0,0.74743436]
[1737265699743,0.05524406,104760.0,104750.0,0.66645536]
[1737265700449,0.05524406,104760.0,104750.0,0.73430176]
[1737265700749,0.05524406,104760.0,104750.0,0.81488076]
[1737265701251,0.05524406,104760.0,104750.0,0.74703436]
[1737265701643,0.05524406,104760.0,104750.0,0.77093446]
[1737265702138,0.05524406,104760.0,104750.0,0.74703436]
[1737265702345,0.05524406,104760.0,104750.0,0.66645536]
[1737265703754,0.19820726,104760.0,104750.0,0.66645536]
[1737265708052,0.19820726,104760.0,104750.0,0.73430176]
[1737265708253,0.19820726,104760.0,104750.0,0.76630176]
[1737265708449,0.19820726,104760.0,104750.0,0.69845536]
[1737265708755,0.19820726,104760.0,104750.0,0.72235553]
[1737265708955,0.05524406,104760.0,104750.0,0.72235553]
[1737265709751,0.05524406,104760.0,104750.0,0.74623436]
[1737265711746,0.55173686,104760.0,104750.0,0.24315536]
[1737265712060,0.047783,104740.0,104720.0,0.39935215]
[1737265712251,0.047788,104730.0,104720.0,0.76015215]
[1737265712552,0.047788,104730.0,104720.0,0.80794415]
[1737265712959,0.047788,104730.0,104720.0,0.43249799]
[1737265713454,0.1156344,104730.0,104720.0,0.02390599]
[1737265714052,0.25821471,104730.0,104720.0,0.02390599]
[1737265714252,0.25821471,104730.0,104720.0,0.3608]
[1737265715362,0.1156344,104730.0,104720.0,0.3608]
[1737265715860,0.12315279,104730.0,104720.0,0.3608]
[1737265717761,0.05530639,104730.0,104720.0,0.3608]
[1737265719168,0.1978867,104730.0,104720.0,0.3608]
[1737265720759,0.05530639,104730.0,104720.0,0.3608]
[1737265723064,0.05530639,104730.0,104720.0,0.408592]
[1737265723267,0.00751839,104730.0,104720.0,0.4764384]
[1737265723563,0.19036331,104740.0,104730.0,0.047787]
[1737265723761,0.19036331,104740.0,104730.0,0.504987]
[1737265724771,0.047783,104740.0,104730.0,0.5728334]
[1737265726172,0.05516421,104740.0,104730.0,0.5728334]
[1737265726674,0.05516421,104740.0,104730.0,0.58777335]
[1737265729674,0.05516421,104740.0,104730.0,0.61167664]
[1737265730974,0.05516421,104740.0,104730.0,0.7830495]
[1737265731679,0.04778,104750.0,104740.0,0.047783]
[1737265731879,0.04778,104750.0,104740.0,0.4764294]
[1737265732379,0.04778,104750.0,104740.0,0.49136768]